bitfinex-derivatives/quotes_ETHF0:USTF0_20251107
["timestamp","ask_amount","ask_price","bid_price","bid_amount"]
[1762541722786,0.47257,3430.3,3430.1,0.47259]
[1762541723184,0.47257,3430.3,3430.0,0.1416]
[1762541723382,0.00275681,3431.2,3430.0,0.1416]
[1762541723383,0.47256,3430.4,3430.0,0.1416]
[1762541723684,0.00275681,3431.2,3430.7,0.6141]
[1762541723880,0.47247,3431.1,3430.7,0.1416]
[1762541724076,0.2319,3430.0,3429.9,0.00437527]
[1762541724281,0.0801,3430.0,3427.9,0.1416]
[1762541724482,0.47278,3428.8,3428.4,0.47282]
[1762541724675,0.47278,3428.8,3428.6,0.00242178]
[1762541726181,0.00437526,3429.0,3428.8,0.47276]
[1762541726779,0.00437526,3429.0,3428.9,0.243]
[1762541728489,0.00437526,3429.0,3428.6,0.00242178]
[1762541728687,0.47278,3428.8,3428.6,0.00242178]
[1762541729991,0.47278,3428.8,3428.6,0.47521178]
[1762541730289,0.47278,3428.8,3428.6,0.00242178]
[1762541730488,0.47278,3428.8,3428.6,0.47522178]
[1762541731091,0.47278,3428.8,3428.6,0.00242178]
[1762541731990,0.47279,3428.7,3428.6,0.47522178]
[1762541732290,0.47501099,3428.7,3428.6,0.00242178]
[1762541732490,0.71232,3428.5,3428.4,0.00437527]
[1762541733085,0.47282,3428.5,3428.4,0.00437527]
[1762541733590,0.71232,3428.5,3428.4,0.00643194]
[1762541733991,0.09612623,3428.5,3427.6,0.47294]
[1762541734293,0.23222623,3428.6,3427.2,0.1416]
[1762541734496,0.09612623,3428.5,3427.2,0.1416]
[1762541734680,0.47297,3427.5,3427.3,0.47298]
[1762541734885,0.47297,3427.4,3427.3,0.0023133]
[1762541735084,0.47297,3427.4,3427.3,0.4752933]
[1762541735285,0.47297,3427.4,3427.3,0.0023133]
[1762541735487,0.71247,3427.4,3427.3,0.0023133]
[1762541736188,0.80870983,3427.4,3427.3,0.0023133]
[1762541736387,0.71249,3427.2,3427.1,0.00437527]
[1762541736590,0.88982983,3427.2,3427.1,0.00437527]
[1762541736792,0.17733983,3427.2,3426.2,0.47313]
[1762541737092,0.2395,3426.3,3425.1,0.1361]
[1762541737293,0.0801,3426.5,3425.6,0.47321]
[1762541737492,0.47314,3426.2,3425.8,0.47319]
[1762541737685,0.00437527,3426.3,3425.7,0.00437527]
[1762541738096,0.47318,3425.9,3425.7,0.00437527]
[1762541738294,0.2395,3425.8,3425.7,0.00437527]
[1762541738494,0.7127,3425.7,3425.6,0.00368424]
[1762541738697,0.09604767,3425.7,3423.8,0.23370375]
[1762541738994,0.1361,3425.8,3423.8,0.23370375]
[1762541738995,0.47327,3425.2,3423.8,0.23370375]
[1762541739197,0.47329,3425.1,3424.7,0.47333]
[1762541739395,0.47327,3425.3,3424.9,0.47331]
[1762541739601,0.47329,3425.1,3424.9,0.00315925]
[1762541739787,0.47329,3425.1,3424.9,0.47646925]
[1762541740096,0.47329,3425.1,3424.9,0.00315925]
[1762541740399,0.00437527,3426.3,3425.2,0.47327]
[1762541740697,0.47322,3425.6,3425.3,0.47325]
[1762541740896,0.74724696,3426.2,3424.9,0.00315925]
[1762541741088,0.74724696,3426.1,3425.2,0.47327]
[1762541741291,0.47323,3425.5,3425.2,0.47327]
[1762541741701,0.47323,3425.5,3425.3,0.47325]
[1762541741892,0.47323,3425.5,3424.9,0.00315925]
[1762541742093,0.47326,3425.3,3424.9,0.00315925]
[1762541742695,0.00437527,3426.3,3424.9,0.00315925]
[1762541742897,0.00437527,3426.3,3425.5,0.47323]
[1762541743301,0.00437527,3426.3,3425.3,0.47325]
[1762541743601,0.00437527,3426.3,3425.2,0.47327]
[1762541743792,0.47326,3425.3,3425.2,0.47327]
[1762541744197,0.47322,3425.6,3424.9,0.00315925]
[1762541744396,0.47323,3425.5,3424.9,0.00315925]
[1762541744590,0.47324,3425.5,3425.3,0.47326]
[1762541744795,0.47324,3425.4,3425.3,0.47326]
[1762541744996,0.47323,3425.6,3425.3,0.47326]
[1762541745192,0.2395,3425.8,3425.7,0.4732]
[1762541745398,0.47318,3425.9,3425.8,0.47319]
[1762541745599,0.00437527,3426.3,3425.6,0.47321]
[1762541745800,0.00437527,3426.3,3425.8,0.47319]
[1762541746001,0.00437527,3426.3,3425.6,0.47321]
[1762541746207,0.7199,3425.0,3424.9,0.00315925]
[1762541747901,0.4733,3425.0,3424.9,0.00315925]
[1762541748205,0.47329,3425.1,3424.9,0.47646925]
[1762541748808,0.4733,3425.0,3424.9,0.00315925]
[1762541749001,0.1329,3425.8,3424.9,0.00315925]
[1762541749197,0.1329,3425.8,3425.2,0.47327]
[1762541749509,0.47325,3425.4,3425.2,0.47326]
[1762541749709,0.47325,3425.4,3425.1,0.47328]
[1762541749907,0.47325,3425.4,3424.9,0.00315925]
[1762541750110,0.47326,3425.3,3425.2,0.47326]
[1762541750297,0.47329,3425.1,3425.0,0.47329]
[1762541750815,0.4733,3425.0,3424.9,0.00315925]
[1762541751005,0.7199,3425.0,3424.9,0.00315925]
[1762541752208,0.4733,3425.1,3424.9,0.47646925]
[1762541752408,0.4733,3425.0,3424.9,0.47646925]
[1762541752912,0.7199,3425.0,3424.9,0.00315925]
[1762541753501,0.1274,3425.1,3423.5,0.4735]
[1762541753707,0.47348,3423.7,3422.6,0.23478403]
[1762541753911,0.1274,3425.1,3421.8,0.1459]
[1762541754205,0.47349,3423.7,3423.6,0.47349]
[1762541754407,0.47349,3423.7,3421.8,0.1459]
[1762541754408,0.47351,3423.5,3423.4,0.47351]
[1762541754715,0.47351,3423.5,3423.4,0.00335573]
[1762541755005,0.2466,3423.5,3423.4,0.00335573]
[1762541755206,0.00281302,3423.7,3423.4,0.00335573]
[1762541755602,0.72011,3423.5,3423.4,0.00335573]
[1762541756106,0.00281302,3423.7,3423.4,0.00335573]
[1762541756107,0.00281302,3423.7,3423.6,0.47349]
[1762541756314,0.47629302,3423.7,3423.4,0.47686573]
[1762541756515,0.00281302,3423.7,3423.4,0.00335573]
[1762541756812,0.72011,3423.5,3423.4,0.00335573]
[1762541757405,0.08251302,3423.7,3422.3,0.47366]
[1762541757607,0.47365,3422.5,3421.8,0.1459]
[1762541757809,0.0799,3423.0,3421.8,0.1459]
[1762541758201,0.0799,3423.0,3421.8,0.00228959]
[1762541758411,0.2271,3422.2,3422.1,0.00293866]
[1762541758705,0.0799,3423.0,3422.2,0.47368]
[1762541758906,0.0799,3423.0,3422.1,0.00293866]
[1762541759115,0.47362,3422.7,3422.4,0.47365]
[1762541759309,0.0799,3423.0,3422.1,0.00293866]
[1762541759616,0.47365,3422.5,3422.1,0.00293866]
[1762541759913,0.47363,3422.6,3422.3,0.47367]
[1762541760106,0.47363,3422.6,3422.1,0.00293866]
[1762541760107,0.2271,3422.7,3422.6,0.47363]
[1762541760311,0.47363,3422.6,3422.3,0.47367]
[1762541760805,0.74251302,3423.7,3422.7,0.47361]
[1762541761108,0.47358,3423.0,3422.7,0.47362]
[1762541761415,0.65078772,3423.6,3422.5,0.47363]
[1762541761614,0.47363,3422.6,3422.5,0.47363]
[1762541761809,0.65078772,3423.6,3422.1,0.00293866]
[1762541761810,0.70079,3422.2,3422.1,0.00293866]
[1762541762013,0.1379,3422.3,3421.8,0.00228959]
[1762541762014,0.70083,3421.9,3421.8,0.00228959]
[1762541762216,0.61158,3422.3,3421.8,0.00228959]
[1762541762413,0.47363,3422.6,3422.3,0.47367]
[1762541762616,0.4736,3422.8,3421.8,0.00228959]
[1762541762818,0.4736,3422.8,3422.5,0.47364]
[1762541763012,0.0043818,3422.6,3422.5,0.47364]
[1762541763611,0.0043818,3422.6,3422.3,0.1379]
[1762541763809,0.4780218,3422.6,3421.8,0.00228959]
[1762541764120,0.0043818,3422.6,3422.5,0.71034]
[1762541764614,0.47367,3422.4,3421.8,0.00228959]
[1762541764810,0.0043818,3422.6,3421.8,0.00228959]
[1762541765012,0.47368,3422.2,3421.9,0.47372]
[1762541765218,0.0043818,3422.6,3422.2,0.47369]
[1762541765519,0.0043818,3422.6,3422.5,0.47364]
[1762541765815,0.47371,3422.1,3421.8,0.00228959]
[1762541766027,0.47369,3422.2,3421.8,0.00228959]
[1762541766416,0.0043818,3422.6,3421.8,0.00228959]
[1762541766721,0.70083,3421.9,3421.8,0.00228959]
[1762541767022,0.4737,3422.2,3421.8,0.00228959]
[1762541767313,0.76002209,3422.2,3419.1,1.54973031]
[1762541767520,0.2271,3421.1,3421.0,0.47385]
[1762541767721,0.2271,3421.4,3421.3,0.47381]
[1762541768120,0.1379,3422.3,3421.5,0.47377]
[1762541768420,0.70087,3421.6,3421.5,0.00368275]
[1762541768825,0.70087,3421.6,3421.5,0.47746275]
[1762541769123,0.70081,3422.0,3421.7,0.47374]
[1762541769329,0.2271,3421.9,3421.8,0.47373]
[1762541769617,0.00223652,3422.3,3421.6,0.1379]
[1762541769830,0.00223652,3422.3,3422.2,0.71039]
[1762541770322,0.00223652,3422.3,3422.2,0.47369]
[1762541770522,0.00223652,3422.3,3422.2,0.71039]
[1762541771219,0.0043818,3422.6,3422.5,0.71034]
[1762541771428,0.17951028,3423.7,3423.3,0.47352]
[1762541771429,0.47349,3423.6,3423.3,0.47352]
[1762541771618,1.17858057,3424.4,3423.4,0.47352]
[1762541771818,1.17858057,3424.4,3422.3,0.1379]
[1762541771819,0.75945307,3424.3,3422.3,0.1379]
[1762541772018,0.75945307,3424.2,3422.3,0.1379]
[1762541772219,0.47348,3423.7,3423.5,0.4735]
[1762541772419,0.0043818,3423.9,3423.5,0.47349]
[1762541772619,0.47348,3423.7,3423.4,0.47351]
[1762541772824,0.09984003,3423.8,3423.6,0.47348]
[1762541773432,0.47348,3423.7,3423.5,0.4735]
[1762541773830,0.47349,3423.6,3423.3,0.4778918]
[1762541774026,0.47347,3423.7,3423.5,0.4735]
[1762541774734,0.57338399,3423.8,3423.6,0.47348]
[1762541775028,0.57337399,3423.8,3423.6,0.47348]
[1762541775426,0.70062,3423.4,3423.3,0.0043818]
[1762541775622,0.70062,3423.4,3422.3,0.1379]
[1762541775623,0.4736,3422.8,3422.3,0.1379]
[1762541775826,0.47361,3422.7,3422.4,0.47364]
[1762541776128,0.76076049,3423.2,3420.5,1.54973031]
[1762541776431,0.47364,3422.5,3422.4,0.47366]
[1762541776632,0.47363,3422.7,3422.5,0.47364]
[1762541776833,0.10001112,3422.9,3422.8,0.4736]
[1762541777030,0.76113731,3423.5,3420.5,1.54973031]
[1762541777231,0.10001112,3423.4,3420.5,1.54973031]
[1762541777426,0.47365,3422.5,3420.5,1.54973031]
[1762541777632,0.47364,3422.6,3422.3,0.47367]
[1762541777834,0.76113731,3423.1,3422.6,0.47362]
[1762541778032,0.89903731,3423.0,3420.3,12.68673031]
[1762541778226,0.47373,3421.9,3421.7,0.47374]
[1762541778433,0.47375,3421.8,3421.6,0.47377]
[1762541778732,0.47375,3421.7,3420.3,11.137]
[1762541779034,0.70087,3421.6,3420.2,0.1379]
[1762541779442,0.80070893,3421.6,3421.0,0.47385]
[1762541779627,1.46278003,3421.6,3420.2,0.1379]
[1762541779936,1.60068003,3421.6,3421.2,0.47382]
[1762541780532,1.46278003,3421.6,3421.3,0.4738]
[1762541781134,0.80070893,3421.6,3421.2,0.47381]
[1762541781335,1.46331625,3421.6,3421.3,0.4738]
[1762541781629,0.76244625,3421.6,3421.4,0.47379]
[1762541781839,0.00257719,3421.8,3421.7,0.2367]
[1762541782130,0.0043818,3422.1,3422.0,0.71041]
[1762541782336,0.0043818,3422.1,3421.9,0.47372]
[1762541782537,0.0043818,3422.1,3421.6,0.1379]
[1762541782731,0.0043818,3422.1,3421.9,0.47372]
[1762541782931,0.00649701,3422.1,3421.9,0.47372]
[1762541783432,0.48019701,3422.1,3421.9,0.47372]
[1762541783639,0.00649701,3422.1,3421.9,0.47372]
[1762541783836,0.00649701,3422.1,3422.0,0.2367]
[1762541784039,0.00649701,3422.1,3421.9,0.47372]
[1762541785236,0.00649701,3422.1,3421.6,0.1379]
[1762541785436,0.47373,3421.9,3421.5,0.00368275]
[1762541785742,0.70087,3421.6,3421.5,0.00368275]
[1762541785926,1.36472513,3421.6,3421.5,0.00368275]
[1762541786128,1.8410357,3421.6,3419.5,0.1379]
[1762541786331,0.47384,3421.1,3419.5,1.68763031]
[1762541786530,0.47382,3421.2,3421.0,0.47384]
[1762541787143,0.47383,3421.1,3421.0,0.00245639]
[1762541787939,1.13782918,3421.1,3421.0,0.47629639]
[1762541788242,1.13782918,3421.1,3421.0,0.00245639]
[1762541789441,0.47393,3420.4,3419.5,0.1379]
[1762541789633,0.0043818,3420.3,3420.2,0.47396]
[1762541790444,0.0043818,3420.3,3420.2,0.47623156]
[1762541791045,0.0043818,3420.3,3420.2,0.00227156]
[1762541791237,0.4783318,3420.3,3420.2,0.00227156]
[1762541791634,0.0043818,3420.3,3420.2,0.47623156]
[1762541792441,0.0043818,3420.3,3420.2,0.85063156]
[1762541792641,0.0043818,3420.3,3420.2,0.47623156]
[1762541793148,0.0043818,3420.3,3420.2,0.85063156]
[1762541794645,0.47378,3421.6,3420.2,8.14977156]
[1762541794848,0.47378,3421.6,3420.2,0.14977156]
[1762541795141,0.47375,3421.8,3421.7,0.47375]
[1762541795349,0.47376,3421.7,3421.6,0.47376]
[1762541795547,0.66229534,3422.0,3420.9,0.1475]
[1762541795748,0.47379,3421.4,3421.3,0.47379]
[1762541795954,0.47381,3421.4,3421.3,0.47381]
[1762541796249,0.47381,3421.4,3421.1,0.47383]
[1762541796439,0.47381,3421.4,3421.2,0.47381]
[1762541796639,0.66224181,3421.9,3420.2,0.14977156]
[1762541796849,0.47386,3421.0,3420.9,0.47386]
[1762541797153,0.47386,3421.0,3420.2,0.14977156]
[1762541797454,0.47385,3421.0,3420.9,0.47386]
[1762541797752,0.47388,3420.9,3420.8,0.47388]
[1762541797950,0.47382,3421.3,3420.2,0.14977156]
[1762541798153,0.47382,3421.2,3421.1,0.47383]
[1762541798449,0.47384,3421.1,3421.0,0.47385]
[1762541798659,0.66040078,3421.5,3420.2,0.14977156]
[1762541798948,0.47379,3421.4,3421.3,0.47381]
[1762541799341,0.47382,3421.3,3420.2,0.14977156]
[1762541799543,0.47378,3421.5,3420.2,0.14977156]
[1762541799744,0.47379,3421.4,3421.3,0.4738]
[1762541800048,0.47381,3421.3,3420.2,0.14977156]
[1762541800251,0.47384,3421.1,3420.2,0.14977156]
[1762541800651,0.0043818,3422.0,3420.2,0.14977156]
[1762541800851,0.47383,3421.2,3421.1,0.47383]
[1762541801550,0.4738,3421.4,3421.3,0.4738]
[1762541801758,0.76533427,3421.9,3421.4,0.47378]
[1762541801960,0.47379,3421.5,3421.4,0.47379]
[1762541802557,0.47381,3421.4,3421.3,0.47381]
[1762541802757,0.47378,3421.6,3421.5,0.47377]
[1762541803359,0.66087836,3421.9,3420.2,0.14977156]
[1762541803360,0.4738,3421.4,3421.3,0.4738]
[1762541803757,0.47376,3421.7,3420.2,0.14977156]
[1762541803955,0.0043818,3422.0,3421.9,0.47372]
[1762541805160,0.47375,3421.8,3421.7,0.47375]
[1762541805357,0.0043818,3422.0,3421.9,0.47372]
[1762541806258,0.2544818,3422.0,3421.9,0.47372]
[1762541806763,0.7281918,3422.0,3421.9,0.47372]
[1762541807156,0.0043818,3422.0,3421.9,0.47372]
[1762541807663,0.0043818,3422.0,3421.9,0.71382]
[1762541809164,0.0043818,3422.0,3421.7,0.47374]
[1762541809165,0.47375,3421.8,3421.7,0.47374]
[1762541809556,0.0043818,3422.0,3421.2,0.1405]
[1762541809758,0.0732,3421.8,3420.4,1.54973031]
[1762541809960,0.47388,3420.9,3420.8,0.47387]
[1762541810161,0.0732,3421.8,3420.6,0.1405]
[1762541810360,0.47383,3421.2,3421.1,0.47384]
[1762541810561,0.0732,3421.8,3420.6,0.1405]
[1762541810562,0.47385,3421.0,3420.9,0.47386]
[1762541810866,0.66269444,3421.7,3420.6,0.1405]
[1762541811167,0.4738,3421.4,3421.2,0.47381]
[1762541811367,0.47378,3421.5,3420.6,0.1405]
[1762541811557,0.47378,3421.5,3421.4,0.47378]
[1762541812058,0.47375,3421.8,3421.6,0.47375]
[1762541812463,0.47375,3421.8,3421.7,0.47375]
[1762541813366,0.47377,3421.6,3420.6,0.1405]
[1762541813874,0.47375,3421.7,3421.6,0.47376]
[1762541814266,0.47377,3421.6,3420.6,1.69023031]
[1762541814571,0.4738,3421.4,3421.3,0.47381]
[1762541814766,0.47378,3421.6,3420.6,0.1405]
[1762541815066,0.47375,3421.8,3421.6,0.47376]
[1762541815266,0.47375,3421.7,3421.6,0.47376]
[1762541815464,0.47377,3421.6,3421.5,0.47378]
[1762541815673,0.47376,3421.7,3421.6,0.47376]
[1762541816273,0.47377,3421.6,3421.5,0.47378]
[1762541816572,0.4738,3421.4,3421.3,0.47381]
[1762541816773,0.66267255,3421.9,3420.6,0.1405]
[1762541817065,0.47383,3421.2,3421.1,0.47382]
[1762541817872,0.47385,3421.0,3420.9,0.47385]
[1762541818362,0.47384,3421.1,3421.0,0.47384]
[1762541819063,0.47386,3421.0,3420.8,0.47386]
[1762541819269,0.47382,3421.2,3421.1,0.47382]
[1762541819764,0.66360976,3421.7,3420.4,1.54973031]
[1762541819970,0.66360976,3421.6,3420.6,0.1438]
[1762541820160,0.66360976,3421.5,3420.6,0.1438]
[1762541820362,0.47389,3420.8,3420.7,0.47389]
[1762541820562,0.47384,3421.1,3421.0,0.47384]
[1762541820869,0.1386,3421.8,3420.6,0.1438]
[1762541820870,0.66374631,3421.7,3421.6,0.47377]
[1762541821165,0.66812482,3422.0,3421.2,0.1438]
[1762541821372,0.47377,3421.6,3421.5,0.47376]
[1762541821565,0.47375,3421.7,3421.6,0.47375]
[1762541822167,0.66374302,3421.9,3421.2,0.1438]
[1762541822471,0.47373,3421.9,3421.8,0.47374]
[1762541822670,0.47376,3421.7,3421.6,0.47375]
[1762541822971,0.47378,3421.6,3421.5,0.47378]
[1762541823466,1.13775554,3421.9,3421.8,0.47374]
[1762541823670,0.47377,3421.7,3421.6,0.47376]
[1762541824373,0.47388,3420.8,3420.7,1.54973031]
[1762541824669,0.1386,3421.2,3420.2,0.00227156]
[1762541824873,0.47395,3420.3,3420.2,0.47623156]
[1762541825170,0.47393,3420.4,3420.3,0.47395]
[1762541825369,0.66401554,3420.9,3420.7,0.47389]
[1762541825571,0.47386,3420.9,3420.6,0.1438]
[1762541825767,0.47386,3420.9,3420.7,0.47389]
[1762541826170,0.47386,3420.9,3420.8,0.47388]
[1762541826369,0.6643313,3421.0,3420.9,0.47386]
[1762541826570,0.47382,3421.3,3421.2,0.47382]
[1762541826971,0.6641425,3421.6,3420.6,0.1438]
[1762541827173,0.47384,3421.1,3421.0,0.47385]
[1762541827370,0.47382,3421.3,3421.1,0.47383]
[1762541827572,0.47394,3420.4,3420.2,1.55200187]
[1762541827775,0.47394,3420.4,3420.2,0.00227156]
[1762541827973,1.80788504,3421.0,3420.2,0.00227156]
[1762541828272,0.47389,3420.7,3420.4,0.47393]
[1762541828578,0.66107417,3420.8,3420.6,0.47391]
[1762541828872,1.04068057,3421.4,3420.6,0.1438]
[1762541829076,0.66089916,3421.3,3421.1,0.47383]
[1762541829271,0.47375,3421.8,3421.2,0.1438]
[1762541829465,0.6607406,3421.9,3421.6,0.47376]
[1762541829672,0.6607406,3421.8,3421.7,0.70014]
[1762541829871,0.4781018,3422.0,3421.7,0.47375]
[1762541830075,0.0043818,3422.0,3421.8,0.47374]
[1762541830873,0.0043818,3422.0,3421.9,0.2264]
[1762541833175,0.0043818,3422.0,3421.3,1.54973031]
[1762541833376,0.0043818,3422.0,3421.5,0.47377]
[1762541833377,0.47374,3421.8,3421.5,0.47377]
[1762541833774,0.0043818,3422.0,3421.2,0.1438]
[1762541834180,0.47375,3421.8,3421.6,0.47376]
[1762541834374,0.0043818,3422.0,3421.3,0.47381]
[1762541834577,0.47378,3421.6,3421.4,0.47379]
[1762541835179,0.4738,3421.4,3421.2,0.47382]
[1762541835680,1.13414922,3421.9,3421.7,0.47374]
[1762541835874,0.0043818,3422.0,3421.2,0.1438]
[1762541836077,0.47373,3421.9,3421.7,0.47375]
[1762541836379,0.0043818,3422.0,3421.9,0.70013]
[1762541836584,4.108e-05,3422.4,3422.3,0.70007]
[1762541836773,0.1386,3423.0,3422.1,1.54973031]
[1762541837085,0.47361,3422.8,3422.3,0.47367]
[1762541837280,0.47362,3422.7,3422.3,0.47367]
[1762541837486,0.1386,3423.0,3421.7,1.54973031]
[1762541837691,1.04068057,3423.5,3423.2,0.47355]
[1762541837878,0.61209,3423.6,3423.3,0.47353]
[1762541838183,0.00366085,3423.5,3423.3,0.47353]
[1762541838874,0.2322,3423.3,3423.2,0.00317963]
[1762541839382,0.00366085,3423.5,3423.3,0.47353]
[1762541840785,0.47353,3423.3,3423.2,0.00317963]
[1762541840986,0.70573,3423.3,3423.2,0.00317963]
[1762541841883,0.2322,3423.3,3423.2,0.00317963]
[1762541842084,0.47717085,3423.5,3423.3,0.47353]
[1762541842395,0.47353,3423.3,3423.2,0.00317963]
[1762541843090,0.70573,3423.3,3423.2,0.00317963]
[1762541843890,0.47364,3422.6,3422.4,0.47365]
[1762541844093,0.1386,3423.0,3422.6,0.47362]
[1762541844594,0.1386,3423.0,3422.2,0.0043818]
[1762541844784,0.47361,3422.8,3422.2,0.00671758]
[1762541844993,0.47361,3422.8,3422.7,0.47361]
[1762541845593,0.00366085,3423.5,3422.2,0.00671758]
[1762541845897,0.47354,3423.3,3423.1,0.47355]
[1762541846095,0.47352,3423.4,3422.2,0.00671758]
[1762541846295,0.47353,3423.3,3423.1,0.47355]
[1762541846793,0.47352,3423.4,3423.2,0.47354]
[1762541847100,0.47353,3423.3,3423.2,0.47353]
[1762541847492,0.00366085,3423.5,3423.3,0.47352]
[1762541847698,0.47353,3423.3,3423.2,0.47353]
[1762541849398,0.47353,3423.4,3423.3,0.47352]
[1762541849800,0.00366085,3423.5,3423.4,0.47352]
[1762541850295,0.47716085,3423.5,3423.4,0.47352]
[1762541850698,0.00366085,3423.5,3423.4,0.47352]
[1762541851099,0.47716085,3423.5,3423.4,0.47352]
[1762541851698,0.00366085,3423.5,3423.4,0.69852]
[1762541853204,0.47716085,3423.5,3423.4,0.47352]
[1762541853397,0.00366085,3423.5,3423.4,0.69852]
[1762541855305,0.00366085,3423.5,3422.4,0.1278]
[1762541855306,0.0043818,3423.7,3423.6,0.76859]
[1762541855804,0.1386,3424.8,3424.5,0.47336]
[1762541856199,0.1386,3424.8,3424.3,0.47339]
[1762541856396,0.00366358,3424.8,3424.7,0.47334]
[1762541856609,0.87608358,3424.8,3424.7,0.00349418]
[1762541857098,0.72326,3424.5,3424.4,0.0043818]
[1762541857609,0.15286358,3424.8,3424.7,0.47334]
[1762541857803,0.00366358,3424.8,3424.7,0.47334]
[1762541858109,0.47698358,3424.8,3424.7,0.47657417]
[1762541858501,0.00366358,3424.8,3424.7,0.47657417]
[1762541858711,0.00366358,3424.8,3424.7,0.70157417]
[1762541859797,0.00366358,3424.8,3424.7,0.47657417]
[1762541860301,0.00366358,3424.8,3424.7,0.70157417]
[1762541861499,0.0043818,3425.1,3425.0,0.7065]
[1762541862515,0.00705639,3425.1,3425.0,0.7065]
[1762541864017,0.47317,3425.9,3425.8,0.47318]
[1762541864408,0.62236,3426.0,3425.9,0.47317]
[1762541865007,0.62533457,3426.0,3425.9,0.47317]
[1762541865314,0.00297457,3426.0,3425.9,0.47317]
[1762541865518,0.00297457,3426.0,3425.9,0.70637]
[1762541866814,0.00297457,3426.0,3425.9,0.47317]
[1762541867018,0.00297457,3426.0,3425.9,0.70637]
[1762541867520,0.00297457,3426.0,3425.9,0.47317]
[1762541867723,0.47317,3425.9,3425.8,0.47317]
[1762541867928,0.14707457,3426.0,3424.8,0.063]
[1762541868116,0.47318,3425.9,3425.8,0.47317]
[1762541869219,0.14707457,3426.0,3424.8,0.063]
[1762541869423,0.47323,3425.5,3424.8,0.063]
[1762541869610,0.1441,3425.4,3424.7,0.00323417]
[1762541870020,0.4732,3425.7,3424.8,0.063]
[1762541870321,0.4732,3425.7,3425.6,0.47321]
[1762541870521,0.703,3425.7,3425.6,0.47321]
[1762541870719,0.47324,3425.5,3425.4,0.47324]
[1762541870923,0.4732,3425.8,3424.8,0.063]
[1762541871120,0.4732,3425.8,3425.7,0.4732]
[1762541871814,0.47319,3425.9,3425.8,0.47318]
[1762541874618,0.00297457,3426.0,3425.9,0.70637]
[1762541875419,0.00297457,3426.0,3425.9,0.47317]
[1762541875723,0.14707457,3426.0,3425.9,0.47317]
[1762541877627,0.00297457,3426.0,3425.9,0.70637]
[1762541880522,0.00297457,3426.0,3425.9,0.70457]
[1762541881119,0.47301,3427.1,3427.0,0.47301]
[1762541881316,0.47305,3426.8,3426.7,0.47305]
[1762541881526,0.47302,3427.0,3426.9,0.47302]
[1762541881721,0.47305,3426.8,3426.7,0.47306]
[1762541881921,0.1492,3427.2,3425.5,0.0664]
[1762541882236,0.1492,3427.2,3426.4,0.4731]
[1762541882237,0.86779,3426.5,3426.4,0.4731]
[1762541882423,0.0043818,3426.7,3426.6,0.70447]
[1762541882921,0.15258447,3427.2,3426.6,0.70447]
[1762541882922,0.00338447,3427.2,3427.1,0.70441]
[1762541883129,0.00338447,3427.2,3427.1,0.70815642]
[1762541884428,0.0029212,3427.5,3427.4,0.70436]
[1762541884622,0.10282546,3428.3,3428.2,0.70425]
[1762541884924,0.4728,3428.7,3427.5,0.23164698]
[1762541885131,0.1464,3428.4,3427.6,0.2314]
[1762541885330,0.47292,3427.7,3427.4,0.47295]
[1762541885524,0.1464,3427.2,3425.4,0.1157]
[1762541885725,0.1464,3427.2,3426.0,0.00437527]
[1762541886028,0.47306,3426.8,3426.6,0.47306]
[1762541886231,0.47303,3427.0,3426.0,0.00437527]
[1762541886526,0.6194,3427.2,3426.0,0.00691564]
[1762541886730,0.47301,3427.1,3426.0,0.00691564]
[1762541886928,0.47301,3427.1,3426.9,0.47303]
[1762541887128,0.1464,3427.8,3427.1,0.473]
[1762541887728,0.6194,3427.2,3426.0,0.00691564]
[1762541887922,0.1464,3427.2,3426.0,0.00691564]
[1762541888129,0.47298,3427.4,3427.2,0.47298]
[1762541888323,0.75130481,3427.7,3427.3,0.47298]
[1762541888522,0.10287273,3427.6,3427.3,0.47298]
[1762541888731,0.47298,3427.3,3427.1,0.47299]
[1762541888933,0.47294,3427.6,3426.0,0.00691564]
[1762541889135,0.10287273,3427.6,3426.0,0.00691564]
[1762541889437,0.1464,3427.8,3427.3,0.47297]
[1762541889634,0.1464,3427.8,3427.1,0.47299]
[1762541889835,0.47295,3427.6,3426.0,0.00691564]
[1762541890133,0.47295,3427.5,3427.3,0.47298]
[1762541890335,0.10287273,3427.6,3427.4,0.47295]
[1762541890535,0.10287273,3427.7,3427.6,0.47294]
[1762541890735,0.89786312,3427.8,3427.7,0.47292]
[1762541890931,1.37077312,3427.8,3427.7,0.47292]
[1762541891133,1.37077312,3427.8,3427.5,0.47294]
[1762541891329,0.72127,3427.4,3427.3,0.47297]
[1762541891635,0.3947,3427.2,3427.1,0.473]
[1762541891827,0.1464,3427.2,3427.1,0.473]
[1762541892029,0.1464,3427.8,3426.0,0.00691564]
[1762541892223,0.1464,3427.8,3427.7,0.47292]
[1762541892844,0.24932388,3427.8,3427.7,0.47292]
[1762541893032,0.1464,3427.8,3427.7,0.47292]
[1762541893233,0.72115,3428.3,3428.2,0.47286]
[1762541893538,1.47271685,3428.3,3428.2,0.47286]
[1762541893933,0.72118,3428.0,3427.9,0.47725527]
[1762541894133,0.82411351,3428.0,3427.9,0.47725527]
[1762541894536,1.47276794,3428.0,3427.9,0.00437527]
[1762541894737,0.3947,3427.8,3427.7,0.47292]
[1762541894932,0.1464,3427.8,3427.7,0.47292]
[1762541896236,0.47288,3428.0,3427.9,0.47289]
[1762541896638,0.00435355,3428.1,3428.0,0.47288]
[1762541899427,0.00435355,3428.1,3428.0,0.70428]
[1762541899642,0.72552355,3428.1,3428.0,0.47288]
[1762541899841,0.25265355,3428.1,3428.0,0.47288]
[1762541900043,0.00435355,3428.1,3428.0,0.47288]
[1762541900636,0.00435355,3428.1,3428.0,0.70428]
[1762541901133,5.73254976,3429.6,3428.0,0.70428]
[1762541901134,0.1464,3429.6,3429.5,0.47268]
[1762541901341,0.3947,3429.6,3429.5,0.47268]
[1762541901535,0.47269,3429.4,3429.3,0.47269]
[1762541901738,0.47272,3429.2,3427.8,0.1157]
[1762541902242,0.00217856,3429.2,3429.1,0.70413]